fUSD/lending_fUSD_20260429
["ID","MTS","AMOUNT","RATE_DAILY","PERIOD"]
[421322052,1777433441456,-168.50576516,8.94e-05,2]
[421322053,1777433441467,-152.0,8.94e-05,2]
[421322054,1777433441477,-151.0,8.94e-05,2]
[421322055,1777433441487,-151.0,8.94e-05,2]
[421322056,1777433441497,-151.0,8.94e-05,2]
[421322057,1777433441507,-151.0,8.94e-05,2]
[421322058,1777433441516,-151.0,8.94e-05,2]
[421322059,1777433441526,-151.0,8.94e-05,2]
[421322060,1777433441536,-151.0,8.94e-05,2]
[421322061,1777433441545,-151.0,8.94e-05,2]
[421322062,1777433441555,-1533.0,8.94e-05,2]
[421322063,1777433441565,-1526.0,8.94e-05,2]
[421322064,1777433441574,-279.06922396,8.94e-05,2]
[421322065,1777433441584,-152.0,8.94e-05,2]
[421322066,1777433441595,-151.0,8.94e-05,2]
[421322067,1777433441605,-152.0,8.94e-05,2]
[421322068,1777433441618,-153.35058231,8.94e-05,2]
[421322069,1777433441628,-152.0,8.94e-05,2]
[421322070,1777433441638,-151.0,8.958e-05,2]
[421322071,1777433441648,-1555.86019757,8.964e-05,2]
[421322072,1777433441658,-152.0,8.964e-05,2]
[421322073,1777433441668,-152.0,8.964e-05,2]
[421322074,1777433441678,-154.01196677,8.964e-05,2]
[421322075,1777433441688,-152.0,8.964e-05,2]
[421322076,1777433441698,-167.13609327,8.981e-05,2]
[421322077,1777433441708,-280.8686703,8.992e-05,2]
[421322078,1777433441718,-5012.43997269,9e-05,2]
[421322079,1777433441728,-165.11,9e-05,2]
[421322080,1777433441738,-151.0,9.013e-05,2]
[421322081,1777433441747,-1160.25290629,9.025e-05,2]
[421322082,1777433441757,-326.15182925,9.039e-05,2]
[421322083,1777433441767,-166.81482427,9.039e-05,2]
[421322084,1777433441776,-500.0,9.039e-05,2]
[421322085,1777433441786,-500.0,9.039e-05,2]
[421322086,1777433441796,-500.0,9.039e-05,2]
[421322087,1777433441805,-500.0,9.039e-05,2]
[421322088,1777433441815,-500.0,9.039e-05,2]
[421322089,1777433441825,-500.0,9.039e-05,2]
[421322090,1777433441835,-529.23768935,9.039e-05,2]
[421322091,1777433441845,-500.0,9.039e-05,2]
[421322092,1777433441857,-448.77170425,9.039e-05,2]
[421322093,1777433441866,-439.98710576,9.039e-05,2]
[421322094,1777433441876,-500.0,9.039e-05,2]
[421322095,1777433441886,-500.0,9.039e-05,2]
[421322096,1777433441896,-468.68885807,9.039e-05,2]
[421322097,1777433441907,-500.0,9.039e-05,2]
[421322098,1777433441916,-500.0,9.039e-05,2]
[421322099,1777433441926,-500.0,9.039e-05,2]
[421322100,1777433441936,-500.0,9.039e-05,2]
[421322101,1777433441947,-500.0,9.039e-05,2]
[421322102,1777433441956,-500.0,9.039e-05,2]
[421322103,1777433441966,-500.0,9.039e-05,2]
[421322104,1777433441976,-500.0,9.039e-05,2]
[421322105,1777433441985,-500.0,9.039e-05,2]
[421322106,1777433441998,-500.0,9.039e-05,2]
[421322107,1777433442007,-500.0,9.039e-05,2]
[421322108,1777433442017,-500.0,9.039e-05,2]
[421322109,1777433442026,-500.0,9.039e-05,2]
[421322110,1777433442036,-500.0,9.039e-05,2]
[421322111,1777433442046,-500.0,9.039e-05,2]
[421322112,1777433442056,-550.0,9.039e-05,2]
[421322113,1777433442066,-500.0,9.039e-05,2]
[421322114,1777433442078,-500.0,9.039e-05,2]
[421322115,1777433442088,-49837.46889763,9.04e-05,2]
[421322116,1777433442098,-288.395799,9.04e-05,2]
[421322117,1777433442107,-151.0,9.04e-05,2]
[421322118,1777433442116,-184.325494,9.04e-05,2]
[421322119,1777433442125,-379.433178,9.04e-05,2]
[421322120,1777433442134,-379.433178,9.04e-05,2]
[421322121,1777433442143,-379.433178,9.04e-05,2]
[421322122,1777433442153,-379.433178,9.04e-05,2]
[421322123,1777433442162,-388.484712,9.04e-05,2]
[421322124,1777433442172,-388.484712,9.04e-05,2]
[421322125,1777433442181,-388.484712,9.04e-05,2]
[421322126,1777433442191,-388.484712,9.04e-05,2]
[421322127,1777433442202,-152.168463,9.04e-05,2]
[421322128,1777433442212,-151.0,9.04e-05,2]
[421322129,1777433442222,-151.0,9.068e-05,2]
[421322130,1777433442231,-151.0,9.123e-05,2]
[421322131,1777433442241,-574.88,9.167e-05,2]
[421322132,1777433442251,-500.0,9.177e-05,2]
[421322133,1777433442260,-151.0,9.178e-05,2]
[421322134,1777433442271,-4888.04758182,9.21e-05,2]
[421322135,1777433442280,-2290.96849018,9.21e-05,2]
[421322136,1777433442290,-1145.75604487,9.21e-05,2]
[421322137,1777433442301,-155.29865049,9.233e-05,2]
[421322138,1777433442312,-152.25886282,9.264e-05,2]
[421322139,1777433442323,-1000.0,9.314e-05,2]
[421322140,1777433442334,-1000.0,9.314e-05,2]
[421322141,1777433442345,-1000.0,9.314e-05,2]
[421322142,1777433442355,-1000.0,9.314e-05,2]
[421322143,1777433442364,-1000.0,9.314e-05,2]
[421322144,1777433442374,-463.41,9.314e-05,2]
[421322145,1777433442386,-1481.23780761,9.341e-05,2]
[421322146,1777433442398,-200.0,9.341e-05,2]
[421322147,1777433442692,-181.08010149,9.341e-05,2]
[421322148,1777433442703,-372.38,9.4e-05,2]
[421322149,1777433442715,-574.86860715,9.423e-05,2]
[421322150,1777433442724,-574.88,9.441e-05,2]
[421322151,1777433442734,-500.0,9.451e-05,2]
[421322152,1777433442743,-163.0,9.5e-05,2]
[421322153,1777433442752,-462.86,9.5e-05,2]
[421322154,1777433442762,-350.0,9.529e-05,2]
[421322155,1777433442772,-350.0,9.532e-05,2]
[421322156,1777433442782,-305.86242,9.589e-05,2]
[421322157,1777433442793,-305.86242,9.589e-05,2]
[421322158,1777433442804,-305.86242,9.589e-05,2]
[421322159,1777433442814,-305.86242,9.589e-05,2]
[421322160,1777433442825,-305.86242,9.589e-05,2]
[421322161,1777433442835,-305.86242,9.589e-05,2]
[421322162,1777433442845,-305.86242,9.589e-05,2]
[421322163,1777433442855,-305.86242,9.589e-05,2]
[421322164,1777433442864,-305.86242,9.589e-05,2]
[421322165,1777433442875,-305.86242,9.589e-05,2]
[421322167,1777433442885,-305.86242,9.589e-05,2]
[421322169,1777433442895,-305.86242,9.589e-05,2]
[421322170,1777433442905,-350.0,9.595e-05,2]
[421322171,1777433442914,-250.0,9.643e-05,2]
[421322172,1777433442924,-209.17831977,9.643e-05,2]
[421322173,1777433442934,-259.98774075,9.65e-05,2]
[421322174,1777433442944,-302.08962499,9.65e-05,2]
[421322175,1777433442954,-5000.0,9.65e-05,2]
[421322176,1777433442965,-250.0,9.65e-05,2]
[421322177,1777433442975,-204.19773083,9.65e-05,2]
[421322178,1777433442985,-5000.0,9.65e-05,2]
[421322179,1777433442995,-250.0,9.651e-05,2]
[421322180,1777433443005,-420.0,9.652e-05,2]
[421322181,1777433443015,-1680.0,9.652e-05,2]
[421322182,1777433443025,-420.0,9.652e-05,2]
[421322183,1777433443035,-255.0,9.652e-05,2]
[421322184,1777433443045,-9562.8,9.67e-05,2]
[421322185,1777433443055,-305.86242,9.67e-05,2]
[421322186,1777433443065,-305.86242,9.67e-05,2]
[421322187,1777433443074,-305.86242,9.67e-05,2]
[421322188,1777433443084,-305.86242,9.67e-05,2]
[421322189,1777433443093,-151.0,9.67e-05,2]
[421322190,1777433443102,-379.433178,9.67e-05,2]
[421322191,1777433443112,-379.433178,9.67e-05,2]
[421322192,1777433443122,-379.433178,9.67e-05,2]
[421322193,1777433443132,-379.433178,9.67e-05,2]
[421322194,1777433443142,-388.484712,9.67e-05,2]
[421322195,1777433443151,-388.484712,9.67e-05,2]
[421322196,1777433443160,-388.484712,9.67e-05,2]
[421322197,1777433443169,-388.484712,9.67e-05,2]
[421322198,1777433443179,-333.86,9.712e-05,2]
[421322199,1777433443189,-3672.57,9.712e-05,2]
[421322200,1777433443198,-849.54,9.712e-05,2]
[421322201,1777433443208,-1911.5,9.712e-05,2]
[421322202,1777433443218,-13783.3,9.712e-05,2]
[421322203,1777433443228,-574.88,9.715e-05,2]
[421322204,1777433443238,-159.0,9.725e-05,5]
[421322205,1777433443248,-502.62790938,9.725e-05,2]
[421322206,1777433443257,-250.0,9.746e-05,2]
[421322207,1777433443267,-1536.04360649,9.889e-05,2]
[421322208,1777433443277,-200.0,9.889e-05,2]
[421322209,1777433443286,-187.78006525,9.889e-05,2]
[421322210,1777433443296,-501.93131034,9.973e-05,2]
[421322211,1777433443305,-337.67734377,9.973e-05,2]
[421322212,1777433443314,-501.72624339,9.973e-05,2]
[421322213,1777433443324,-503.05932703,9.973e-05,2]
[421322214,1777433443334,-501.58087282,9.973e-05,2]
[421322215,1777433443343,-501.82993617,9.973e-05,2]
[421322216,1777433443353,-500.37168085,9.973e-05,2]
[421322217,1777433443363,-378.46907358,9.973e-05,2]
[421322218,1777433443373,-500.54049894,9.973e-05,2]
[421322219,1777433443382,-574.88,9.989e-05,2]
[421322220,1777433443392,-300.583,9.999e-05,2]
[421322221,1777433443402,-896.28493328,0.0001,2]
[421322222,1777433443412,-2760.0406043,0.0001,2]
[421322223,1777433443421,-12284.15081766,0.0001,2]
[421322224,1777433443431,-832.00268018,0.0001,2]
[421322225,1777433443441,-212.41838873,0.0001,2]
[421322226,1777433443450,-200.0,0.0001,2]
[421322227,1777433443460,-151.0,0.0001,2]
[421322228,1777433443471,-500.0,0.0001,2]
[421322229,1777433443480,-151.0,0.0001,2]
[421322230,1777433443490,-500.0,0.0001,2]
[421322231,1777433443502,-151.0,0.0001,2]
[421322232,1777433443511,-500.0,0.0001,2]
[421322233,1777433443521,-151.0,0.0001,2]
[421322234,1777433443531,-528.35539309,0.0001,2]
[421322235,1777433443541,-151.0,0.0001,2]
[421322236,1777433443550,-151.0,0.0001,2]
[421322237,1777433443560,-151.0,0.0001,2]
[421322238,1777433443570,-151.0,0.0001,2]
[421322239,1777433443580,-151.0,0.0001,2]
[421322240,1777433443590,-166.64255966,0.0001,2]
[421322241,1777433443600,-500.0,0.0001,2]
[421322242,1777433443611,-500.0,0.0001,2]
[421322243,1777433443621,-500.0,0.0001,2]
[421322244,1777433443631,-500.0,0.0001,2]
[421322245,1777433443640,-345.09296198,0.0001,2]
[421322246,1777433443650,-305.86242,0.0001,2]
[421322247,1777433443660,-305.86242,0.0001,2]
[421322248,1777433443670,-305.86242,0.0001,2]
[421322249,1777433443680,-305.862414,0.0001,2]
[421322250,1777433443690,-151.0,0.0001,2]
[421322251,1777433443699,-2000.0,0.0001,2]
[421322252,1777433443708,-2000.0,0.0001,2]
[421322253,1777433443717,-2000.0,0.0001,2]
[421322254,1777433443727,-2000.0,0.0001,2]
[421322255,1777433443736,-2000.0,0.0001,2]
[421322256,1777433443746,-2000.0,0.0001,2]
[421322257,1777433443755,-2000.0,0.0001,2]
[421322258,1777433443764,-2000.0,0.0001,2]
[421322259,1777433443774,-2000.0,0.0001,2]
[421322260,1777433443783,-2000.0,0.0001,2]
[421322261,1777433443792,-2000.0,0.0001,2]
[421322262,1777433443802,-2000.0,0.0001,2]
[421322263,1777433443812,-379.433178,0.0001,2]
[421322264,1777433443822,-379.433178,0.0001,2]
[421322265,1777433443831,-379.433178,0.0001,2]
[421322266,1777433443840,-379.433188,0.0001,2]
[421322267,1777433443849,-388.484712,0.0001,2]
[421322268,1777433443858,-388.484712,0.0001,2]
[421322269,1777433443867,-388.484712,0.0001,2]
[421322270,1777433443877,-388.484716,0.0001,2]
[421322271,1777433443887,-255.50548,0.0001,2]
[421322272,1777433443896,-500.0,0.0001,2]
[421322273,1777433443906,-500.0,0.0001,2]
[421322274,1777433443915,-500.0,0.0001,2]
[421322275,1777433443924,-500.0,0.0001,2]
[421322276,1777433443933,-500.0,0.0001,2]
[421322277,1777433443942,-500.0,0.0001,2]
[421322278,1777433443952,-500.0,0.0001,2]
[421322279,1777433443962,-500.0,0.0001,2]
[421322280,1777433443972,-500.0,0.0001,2]
[421322281,1777433443981,-500.0,0.0001,2]
[421322282,1777433443990,-500.0,0.0001,2]
[421322283,1777433444000,-500.0,0.0001,2]
[421322284,1777433444009,-500.0,0.0001,2]
[421322285,1777433444019,-500.0,0.0001,2]
[421322286,1777433444029,-500.0,0.0001,2]
[421322287,1777433444039,-500.0,0.0001,2]
[421322288,1777433444049,-500.0,0.0001,2]
[421322289,1777433444059,-500.0,0.0001,2]
[421322290,1777433444069,-500.0,0.0001,2]
[421322291,1777433444078,-500.0,0.0001,2]
[421322292,1777433444088,-500.0,0.0001,2]
[421322293,1777433444097,-500.0,0.0001,2]
[421322294,1777433444107,-500.0,0.0001,2]
[421322295,1777433444117,-500.0,0.0001,2]
[421322296,1777433444128,-500.0,0.0001,2]
[421322297,1777433444138,-500.0,0.0001,2]
[421322298,1777433444148,-500.0,0.0001,2]
[421322299,1777433444158,-500.0,0.0001,2]
[421322300,1777433444168,-500.0,0.0001,2]
[421322301,1777433444179,-500.0,0.0001,2]
[421322302,1777433444189,-500.0,0.0001,2]
[421322303,1777433444199,-500.0,0.0001,2]
[421322304,1777433444208,-500.0,0.0001,2]
[421322305,1777433444218,-500.0,0.0001,2]
[421322306,1777433444227,-500.0,0.0001,2]
[421322307,1777433444236,-500.0,0.0001,2]
[421322308,1777433444246,-500.0,0.0001,2]
[421322309,1777433444256,-500.0,0.0001,2]
[421322310,1777433444266,-500.0,0.0001,2]
[421322311,1777433444275,-500.0,0.0001,2]
[421322312,1777433444285,-370.82,0.00010021,2]
[421322313,1777433444295,-4260.18,0.00010021,2]
[421322314,1777433444304,-985.46,0.00010021,2]
[421322315,1777433444314,-2217.34,0.00010021,2]
[421322316,1777433444323,-15988.63,0.00010021,2]
[421322317,1777433444332,-574.93443763,0.00010263,2]
[421322318,1777433444342,-278.541,0.00010268,2]
[421322319,1777433444351,-930.043,0.00010268,2]
[421322320,1777433444361,-1224.488,0.00010268,2]
[421322321,1777433444370,-632.658,0.00010268,2]
[421322322,1777433444380,-1663.0,0.00010268,2]
[421322323,1777433444389,-1592.87721993,0.00010437,2]
[421322324,1777433444399,-200.0,0.00010437,2]
[421322325,1777433444409,-194.72792766,0.00010437,2]
[421322326,1777433444419,-205.06523349,0.00010474,3]
[421322327,1777433444429,-200.0,0.00010509,2]
[421322328,1777433444438,-203.18440833,0.00010548,2]
[421322329,1777433444448,-587.0,0.00010618,2]
[421322330,1777433444457,-2351.0,0.00010618,2]
[421322331,1777433444467,-433.0,0.00010618,2]
[421322332,1777433444476,-431.0,0.00010618,2]
[421322333,1777433444486,-270.76942048,0.000107,2]
[421322334,1777433444495,-12808.38019238,0.000107,2]
[421322335,1777433444505,-150.0,0.000108,2]
[421322336,1777433444514,-150.0,0.000108,2]
[421322337,1777433444523,-150.0,0.000108,2]
[421322338,1777433444533,-152.48708213,0.000108,2]
[421322339,1777433444543,-150.0,0.000108,2]
[421322340,1777433444552,-150.0,0.000108,2]
[421322341,1777433444562,-257.74077214,0.000108,2]
[421322342,1777433444572,-150.28374765,0.000108,2]
[421322343,1777433444581,-150.0,0.000108,2]
[421322344,1777433444590,-150.0,0.000108,2]
[421322345,1777433444600,-150.0,0.000108,2]
[421322346,1777433444610,-150.0,0.00010817,2]
[421322347,1777433444621,-150.0,0.00010834,2]
[421322348,1777433444631,-150.0,0.00010851,2]
[421322349,1777433444641,-150.0,0.00010868,2]
[421322350,1777433444652,-150.0,0.00010875,2]
[421322351,1777433444663,-150.0,0.00010885,2]
[421322352,1777433444673,-150.0,0.00010886,2]
[421322353,1777433444682,-255.25,0.000109,2]
[421322354,1777433444692,-150.0,0.000109,2]
[421322355,1777433444701,-150.0,0.00010901,2]
[421322356,1777433444712,-150.0,0.00010909,2]
[421322357,1777433444721,-150.0,0.00010918,2]
[421322358,1777433444731,-150.0,0.0001092,2]
[421322359,1777433444740,-150.0,0.00010935,2]
[421322360,1777433444750,-150.0,0.0001095,2]
[421322361,1777433444760,-150.0,0.00010952,2]
[421322362,1777433444769,-200.0,0.00010959,2]
[421322363,1777433444779,-200.0,0.00010959,2]
[421322364,1777433444788,-151.0,0.00010959,2]
[421322365,1777433444798,-151.0,0.00010959,2]
[421322366,1777433444808,-151.0,0.00010959,2]
[421322367,1777433444818,-151.0,0.00010959,2]
[421322368,1777433444828,-151.0,0.00010959,2]
[421322369,1777433444838,-151.0,0.00010959,2]
[421322370,1777433444848,-151.0,0.00010959,2]
[421322371,1777433444858,-151.0,0.00010959,2]
[421322372,1777433444867,-151.0,0.00010959,2]
[421322373,1777433444877,-151.0,0.00010959,2]
[421322374,1777433444887,-151.0,0.00010959,2]
[421322375,1777433444896,-151.0,0.00010959,2]
[421322376,1777433444907,-151.0,0.00010959,2]
[421322377,1777433444917,-241.000007,0.00010959,2]
[421322378,1777433444927,-1136.0,0.00010959,2]
[421322379,1777433444938,-150.0,0.00010969,2]
[421322380,1777433444947,-150.0,0.00010971,2]
[421322381,1777433444957,-1651.81367706,0.00010985,2]
[421322382,1777433444967,-200.0,0.00010985,2]
[421322383,1777433444977,-201.93286099,0.00010985,2]
[421322384,1777433444987,-150.0,0.00010986,2]
[421322385,1777433444997,-155.0,0.00010999,2]
[421322386,1777433445007,-55000.0,0.00011,2]
[421322387,1777433445017,-150.0,0.00011,2]
[421322388,1777433445027,-150.0,0.00011003,2]
[421322389,1777433445037,-150.0,0.00011018,2]
[421322390,1777433445047,-150.0,0.0001102,2]
[421322391,1777433445057,-150.0,0.00011025,2]
[421322392,1777433445067,-150.0,0.00011037,2]
[421322393,1777433445077,-150.0,0.0001104,2]
[421322394,1777433445087,-150.0,0.00011054,2]
[421322395,1777433445098,-150.0,0.00011057,2]
[421322396,1777433445108,-150.0,0.0001107,2]
[421322397,1777433445118,-150.0,0.00011087,2]
[421322398,1777433445128,-3081.31201217,0.00011099,2]
[421322399,1777433445138,-3081.31201216,0.00011099,2]
[421322400,1777433445148,-3081.31201216,0.00011099,2]
[421322401,1777433445159,-3081.31201216,0.00011099,2]
[421322402,1777433445168,-3081.31201216,0.00011099,2]
[421322403,1777433445178,-3081.31201216,0.00011099,2]
[421322404,1777433445188,-3081.31201216,0.00011099,2]
[421322405,1777433445198,-150.0,0.000111,2]
[421322406,1777433445208,-150.0,0.000111,2]
[421322407,1777433445218,-150.0,0.00011104,2]
[421322408,1777433445228,-150.0,0.00011121,2]
[421322409,1777433445238,-150.0,0.00011127,2]
[421322410,1777433445251,-150.0,0.00011138,2]
[421322411,1777433445260,-150.0,0.00011143,2]
[421322412,1777433445271,-150.0,0.00011155,2]
[421322413,1777433445283,-150.0,0.0001116,2]
[421322414,1777433445293,-150.0,0.00011172,2]
[421322415,1777433445302,-150.0,0.00011175,2]
[421322416,1777433445312,-150.0,0.00011189,2]
[421322417,1777433445321,-3081.31201216,0.000112,2]
[421322418,1777433445331,-150.0,0.000112,2]
[421322419,1777433445340,-150.0,0.00011206,2]
[421322420,1777433445350,-150.0,0.00011223,2]
[421322421,1777433445361,-150.0,0.00011229,2]
[421322422,1777433445373,-150.0,0.00011236,2]
[421322423,1777433445383,-150.0,0.00011239,2]
[421322424,1777433445393,-150.0,0.0001125,2]
[421322425,1777433445403,-150.0,0.00011256,2]
[421322426,1777433445413,-162.4,0.00011266,2]
[421322427,1777433445424,-150.0,0.00011273,2]
[421322428,1777433445435,-150.0,0.0001128,2]
[421322429,1777433445445,-150.0,0.0001129,2]
[421322430,1777433445455,-150.0,0.000113,2]
[421322431,1777433445466,-300.0,0.00011301,2]
[421322432,1777433445475,-22391.637814,0.00011301,2]
[421322433,1777433445485,-20033.9706185,0.00011302,2]
[421322434,1777433445495,-150.0,0.00011307,2]
[421322435,1777433445505,-150.0,0.0001131,2]
[421322436,1777433445514,-150.0,0.00011314,2]
[421322438,1777433445525,-150.0,0.00011324,2]
[421322440,1777433445535,-150.0,0.00011325,2]
[421322441,1777433445545,-150.0,0.00011341,2]
[421322442,1777433445555,-150.0,0.00011345,2]
[421322443,1777433445565,-150.0,0.00011358,2]
[421322444,1777433445574,-150.0,0.00011375,2]
[421322445,1777433445584,-150.0,0.00011392,2]
[421322446,1777433445594,-319.48425432,0.00011399,2]
[421322448,1777433445604,-306.5537977,0.00011399,2]
[421322450,1777433445613,-150.0,0.000114,2]
[421322452,1777433445623,-126193.03672929,0.000114,2]
[421322454,1777433445633,-150.0,0.000114,2]
[421322456,1777433445643,-150.0,0.000114,2]
[421322457,1777433445652,-150.0,0.000114,2]
[421322458,1777433445662,-150.0,0.000114,2]
[421322459,1777433445673,-150.0,0.00011408,2]
[421322460,1777433445683,-150.0,0.00011425,2]
[421322461,1777433445693,-150.0,0.00011442,2]
[421322462,1777433445703,-150.0,0.00011455,2]
[421322463,1777433445713,-150.0,0.00011459,2]
[421322464,1777433445723,-162.38,0.00011463,2]
[421322465,1777433445734,-150.0,0.00011475,2]
[421322466,1777433445744,-150.0,0.00011476,2]
[421322467,1777433445754,-150.0,0.00011486,2]
[421322468,1777433445764,-150.0,0.00011493,2]
[421322469,1777433445774,-20038.90723992,0.000115,2]
[421322470,1777433445784,-150.0,0.000115,2]
[421322472,1777433445794,-150.0,0.0001151,2]
[421322473,1777433445804,-150.0,0.0001152,2]
[421322474,1777433445815,-150.0,0.00011527,2]
[421322475,1777433445825,-200.0,0.00011533,2]
[421322476,1777433445835,-209.40437684,0.00011533,2]
[421322477,1777433445845,-150.0,0.00011544,2]
[421322478,1777433445854,-3081.31201216,0.0001155,2]
[421322479,1777433445865,-150.0,0.0001155,2]
[421322480,1777433445875,-150.0,0.00011561,2]
[421322481,1777433445885,-150.0,0.00011564,2]
[421322482,1777433445896,-150.0,0.00011571,2]
[421322483,1777433445907,-150.0,0.00011577,2]
[421322484,1777433445917,-150.0,0.00011594,2]
[421322485,1777433445927,-150.0,0.000116,2]
[421322486,1777433445937,-150.0,0.00011611,2]
[421322487,1777433445949,-150.0,0.00011625,2]
[421322488,1777433445961,-150.0,0.00011628,2]
[421322489,1777433445971,-162.4,0.00011633,2]
[421322490,1777433445980,-150.0,0.0001164,2]
[421322491,1777433445990,-150.0,0.00011645,2]
[421322492,1777433446000,-150.0,0.00011657,2]
[421322493,1777433446010,-150.0,0.00011662,2]
[421322494,1777433446020,-150.0,0.00011673,2]
[421322495,1777433446031,-150.0,0.00011679,2]
[421322496,1777433446041,-823.0,0.00011679,2]
[421322497,1777433446050,-3292.0,0.00011679,2]
[421322498,1777433446060,-736.0,0.00011679,2]
[421322499,1777433446070,-150.0,0.00011696,2]
[421322500,1777433446081,-150.0,0.000117,2]
[421322501,1777433446091,-150.0,0.000117,2]
[421322502,1777433446101,-150.0,0.00011713,2]
[421322503,1777433446111,-150.0,0.0001173,2]
[421322504,1777433446120,-150.0,0.00011743,2]
[421322505,1777433446130,-150.0,0.00011746,2]
[421322506,1777433446139,-1451.93208394,0.0001176,2]
[421322507,1777433446150,-150.0,0.0001176,2]
[421322508,1777433446160,-150.0,0.00011763,2]
[421322509,1777433446170,-150.0,0.00011775,2]
[421322510,1777433446181,-150.0,0.0001178,2]
[421322511,1777433446191,-150.0,0.00011782,2]
[421322512,1777433446202,-150.0,0.00011792,2]
[421322513,1777433446211,-150.0,0.00011797,2]
[421322514,1777433446221,-150.0,0.00011798,2]
[421322515,1777433446231,-150.0,0.000118,2]
[421322516,1777433446241,-150.0,0.00011814,2]
[421322517,1777433446251,-150.0,0.00011829,2]
[421322518,1777433446260,-150.0,0.00011831,2]
[421322519,1777433446269,-4996.2497314,0.00011838,2]
[421322520,1777433446279,-4470.1830725,0.00011838,2]
[421322521,1777433446288,-150.0,0.00011848,2]
[421322522,1777433446298,-150.0,0.0001185,2]
[421322523,1777433446308,-150.0,0.00011865,2]
[421322524,1777433446317,-150.0,0.0001188,2]
[421322525,1777433446326,-150.0,0.00011882,2]
[421322526,1777433446336,-150.0,0.00011891,2]
[421322527,1777433446345,-150.0,0.00011899,2]
[421322528,1777433446355,-150.0,0.000119,2]
[421322529,1777433446367,-835.21736838,0.000119,2]
[421322530,1777433446377,-864.04838643,0.000119,2]
[421322531,1777433446387,-3081.31201216,0.000119,2]
[421322532,1777433446396,-7710.8467702,0.000119,2]
[421322533,1777433446406,-150.0,0.00011914,2]
[421322534,1777433446416,-150.0,0.00011915,2]
[421322535,1777433446426,-150.0,0.00011925,2]
[421322536,1777433446435,-150.0,0.00011932,2]
[421322537,1777433446446,-150.0,0.00011949,2]
[421322538,1777433446455,-150.0,0.00011966,2]
[421322540,1777433446465,-4032.0,0.00011973,2]
[421322542,1777433446475,-553.81372154,0.0001198,2]
[421322543,1777433446484,-150.0,0.00011983,2]
[421322544,1777433446494,-155.0,0.00011999,2]
[421322545,1777433446503,-150.0,0.00011999,2]
[421322546,1777433446512,-52236.5952096,0.00011999,2]
[421322547,1777433446522,-3080533.35746936,0.00012,2]
[421322548,1777433446531,-249.49,0.00012,2]
[421322549,1777433446541,-126205.78401993,0.00012,2]
[421322550,1777433446551,-322142.93177206,0.00012,2]
[421322551,1777433446562,-99917.09966299,0.00012,2]
[421322553,1777433447111,-509.0,0.00012,2]
[421322554,1777433447341,-164.321,9.947e-05,2]
[421322555,1777433447351,-159.0,0.00011138,5]
[421322556,1777433447360,-41444.4081432,0.00012,2]
[421322640,1777433509917,440.62434258,8.715e-05,2]
[421322641,1777433527218,162.0,8.715e-05,3]
[421322642,1777433528832,156.0,8.715e-05,3]
[421322643,1777433711402,165.0,8.715e-05,3]
[421322644,1777433942904,150.0,8.627e-05,2]
[421322645,1777434024386,540.0,0.0002,120]
[421322654,1777434633251,-300.24001155,8.894e-05,2]
[421322655,1777434633262,-250.0,8.894e-05,2]